fUST/lending_fUST_20240906
["ID","MTS","AMOUNT","RATE_DAILY","PERIOD"]
[337335127,1725609065789,-500.0,0.0002051,2]
[337335128,1725609065798,-353.93892279,0.0002051,2]
[337335129,1725609065808,-512.0578005,0.0002051,2]
[337335130,1725609065818,-566.78601339,0.0002051,2]
[337335131,1725609065827,-500.0,0.0002051,2]
[337335132,1725609065837,-416.90639756,0.0002051,2]
[337335133,1725609066590,-500.0,0.00019941,2]
[337335134,1725609066599,-1285.31,0.00019948,2]
[337335135,1725609066609,-1285.31,0.0001995,2]
[337335136,1725609066618,-1285.31,0.0001995,2]
[337335137,1725609066628,-1285.31,0.0001995,2]
[337335138,1725609066637,-1383.58,0.00019951,2]
[337335139,1725609066647,-209.77,0.00019953,3]
[337335140,1725609066655,-1285.31,0.00019957,2]
[337335141,1725609066665,-1285.31,0.00019957,2]
[337335142,1725609066674,-1285.31,0.00019957,2]
[337335143,1725609066684,-1285.31,0.00019958,2]
[337335144,1725609066694,-1285.31,0.00019958,2]
[337335145,1725609066703,-1285.31,0.00019958,2]
[337335146,1725609066713,-1285.31,0.00019961,2]
[337335147,1725609066722,-1285.31,0.00019961,2]
[337335148,1725609066731,-1285.31,0.00019962,2]
[337335149,1725609066741,-1285.31,0.00019962,2]
[337335150,1725609066750,-1285.31,0.00019962,2]
[337335151,1725609066760,-500.0,0.00019963,2]
[337335152,1725609066769,-502.90247645,0.00019963,2]
[337335153,1725609066779,-500.0,0.00019963,2]
[337335154,1725609066789,-500.0,0.00019963,2]
[337335155,1725609066799,-500.0,0.00019963,2]
[337335156,1725609066811,-500.0,0.00020215,2]
[337335157,1725609066822,-151.0,0.00020225,2]
[337335158,1725609066832,-500.0,0.00020236,2]
[337335159,1725609066843,-151.0,0.00020257,2]
[337335160,1725609066853,-500.0,0.00020489,2]
[337335161,1725609066863,-83.09360244,0.0002051,2]
[337335162,1725609066872,-500.0,0.0002051,2]
[337335163,1725609066882,-500.0,0.0002051,2]
[337335164,1725609066893,-500.0,0.0002051,2]
[337335165,1725609066904,-626.85,0.0002051,2]
[337335166,1725609066915,-500.0,0.0002051,2]
[337335167,1725609066924,-500.0,0.0002051,2]
[337335168,1725609066934,-500.0,0.0002051,2]
[337335169,1725609066943,-500.0,0.0002051,2]
[337335170,1725609066952,-500.0,0.0002051,2]
[337335171,1725609066964,-683.82,0.0002051,2]
[337335172,1725609066973,-500.0,0.0002051,2]
[337335173,1725609066984,-1076.34,0.0002051,2]
[337335174,1725609066993,-500.0,0.0002051,2]
[337335175,1725609067002,-500.0,0.0002051,2]
[337335176,1725609067012,-500.0,0.0002051,2]
[337335177,1725609067022,-502.39,0.0002051,2]
[337335178,1725609067031,-500.0,0.0002051,2]
[337335179,1725609067042,-520.81,0.0002051,2]
[337335180,1725609067054,-1222.24,0.0002051,2]
[337335181,1725609067065,-500.0,0.0002051,2]
[337335182,1725609067075,-500.0,0.0002051,2]
[337335183,1725609067085,-500.0,0.0002051,2]
[337335184,1725609067096,-589.38,0.0002051,2]
[337335185,1725609067107,-500.0,0.0002051,2]
[337335186,1725609067118,-500.0,0.0002051,2]
[337335187,1725609067128,-1745.55,0.0002051,2]
[337335188,1725609067138,-480.74745129,0.0002051,2]
[337335189,1725609067148,-397.88075288,0.0002051,2]
[337335190,1725609067158,-500.0,0.0002051,2]
[337335191,1725609067168,-500.0,0.0002051,2]
[337335192,1725609067178,-500.0,0.0002051,2]
[337335193,1725609067187,-500.0,0.0002051,2]
[337335194,1725609067333,-955.9,0.0002051,2]
[337335195,1725609067344,-510.69977183,0.0002051,2]
[337335196,1725609067354,-500.0,0.0002051,2]
[337335197,1725609067364,-822.0,0.0002051,2]
[337335198,1725609067374,-500.0,0.0002051,2]
[337335199,1725609067384,-500.0,0.0002051,2]
[337335200,1725609067394,-500.0,0.0002051,2]
[337335201,1725609067406,-500.0,0.0002051,2]
[337335202,1725609067418,-500.0,0.0002051,2]
[337335203,1725609067428,-500.0,0.0002051,2]
[337335204,1725609067439,-506.36545872,0.0002051,2]
[337335205,1725609067449,-500.0,0.0002051,2]
[337335206,1725609067459,-500.0,0.0002051,2]
[337335207,1725609067470,-2223.89,0.0002051,2]
[337335208,1725609067481,-500.0,0.0002051,2]
[337335209,1725609067490,-500.0,0.0002051,2]
[337335210,1725609067501,-776.86,0.0002051,2]
[337335211,1725609067511,-500.0,0.0002051,2]
[337335212,1725609067521,-151.0,0.0002051,2]
[337335213,1725609067531,-500.0,0.0002051,2]
[337335214,1725609067541,-500.0,0.0002051,2]
[337335215,1725609067550,-500.0,0.0002051,2]
[337335216,1725609067562,-500.0,0.0002051,2]
[337335217,1725609067572,-500.0,0.0002051,2]
[337335218,1725609067582,-500.0,0.0002051,2]
[337335219,1725609067592,-500.0,0.0002051,2]
[337335220,1725609067602,-500.0,0.0002051,2]
[337335221,1725609067612,-500.0,0.0002051,2]
[337335222,1725609067621,-500.0,0.0002051,2]
[337335223,1725609067632,-500.0,0.0002051,2]
[337335224,1725609067642,-500.0,0.0002051,2]
[337335225,1725609067652,-500.0,0.0002051,2]
[337335226,1725609067662,-500.0,0.0002051,2]
[337335227,1725609067673,-314.21288758,0.0002051,2]
[337335228,1725609067683,-553.07,0.0002051,2]
[337335229,1725609067692,-500.0,0.0002051,2]
[337335230,1725609067703,-699.05,0.0002051,2]
[337335231,1725609067713,-500.0,0.0002051,2]
[337335232,1725609067723,-500.0,0.0002051,2]
[337335233,1725609067734,-571.4,0.0002051,2]
[337335234,1725609067742,-151.0,0.0002051,2]
[337335235,1725609067752,-151.0,0.0002051,2]
[337335236,1725609067761,-151.0,0.0002051,2]
[337335237,1725609067770,-500.0,0.0002051,2]
[337335238,1725609067779,-500.0,0.0002051,2]
[337335239,1725609067789,-279.44228473,0.0002051,2]
[337335240,1725609067798,-151.0,0.0002051,2]
[337335241,1725609067810,-500.0,0.0002051,2]
[337335242,1725609067819,-191.299857,0.0002051,2]
[337335243,1725609067828,-500.0,0.0002051,2]
[337335244,1725609067837,-191.299857,0.0002051,2]
[337335245,1725609067846,-500.0,0.0002051,2]
[337335246,1725609067855,-500.0,0.0002051,2]
[337335247,1725609067865,-500.0,0.0002051,2]
[337335248,1725609067874,-500.0,0.0002051,2]
[337335249,1725609067884,-500.0,0.0002051,2]
[337335250,1725609067892,-504.9199101,0.0002051,2]
[337335251,1725609067902,-500.0,0.0002051,2]
[337335252,1725609067911,-500.0,0.0002051,2]
[337335253,1725609067921,-5447.000231,0.0002051,2]
[337335254,1725609067930,-2619.13,0.0002051,2]
[337335255,1725609067940,-500.0,0.0002051,2]
[337335256,1725609067949,-560.77360419,0.0002051,2]
[337335257,1725609067959,-500.0,0.0002051,2]
[337335258,1725609067969,-5447.000231,0.0002051,2]
[337335259,1725609067979,-532.42291221,0.0002051,2]
[337335260,1725609067989,-500.0,0.0002051,2]
[337335261,1725609067999,-500.0,0.0002051,2]
[337335262,1725609068009,-1543.94,0.0002051,2]
[337335263,1725609068018,-500.0,0.0002051,2]
[337335264,1725609068028,-500.0,0.0002051,2]
[337335265,1725609068038,-330.88446832,0.0002051,2]
[337335266,1725609068048,-500.0,0.0002051,2]
[337335267,1725609068057,-500.0,0.0002051,2]
[337335268,1725609068070,-500.0,0.0002051,2]
[337335269,1725609068080,-500.0,0.0002051,2]
[337335270,1725609068089,-500.0,0.0002051,2]
[337335271,1725609068099,-562.81,0.0002051,2]
[337335272,1725609068108,-514.444944,0.0002051,2]
[337335273,1725609068117,-2147.88,0.0002051,2]
[337335274,1725609068127,-789.59,0.0002051,2]
[337335275,1725609068137,-514.444944,0.0002051,2]
[337335276,1725609068147,-500.0,0.0002051,2]
[337335277,1725609068156,-151.0,0.0002051,2]
[337335278,1725609068167,-500.0,0.0002051,2]
[337335279,1725609068178,-494.043601,0.0002051,2]
[337335280,1725609068188,-960.27,0.0002051,2]
[337335281,1725609068197,-500.0,0.0002051,2]
[337335282,1725609068207,-151.0,0.0002051,2]
[337335283,1725609068217,-494.043601,0.0002051,2]
[337335284,1725609068227,-500.0,0.0002051,2]
[337335285,1725609068238,-500.0,0.0002051,2]
[337335286,1725609068249,-151.0,0.0002051,2]
[337335287,1725609068259,-500.0,0.0002051,2]
[337335288,1725609068270,-500.0,0.0002051,2]
[337335289,1725609068281,-500.0,0.0002051,2]
[337335290,1725609068297,-500.0,0.0002051,2]
[337335291,1725609068307,-500.0,0.0002051,2]
[337335292,1725609068322,-500.0,0.0002051,2]
[337335293,1725609068339,-500.0,0.0002051,2]
[337335294,1725609068357,-500.0,0.0002051,2]
[337335295,1725609068371,-500.0,0.0002051,2]
[337335296,1725609068382,-500.0,0.0002051,2]
[337335297,1725609068391,-500.0,0.0002051,2]
[337335298,1725609068400,-500.0,0.0002051,2]
[337335299,1725609068409,-500.0,0.0002051,2]
[337335300,1725609068418,-500.0,0.0002051,2]
[337335301,1725609068428,-2938.483127,0.0002051,2]
[337335302,1725609068437,-617.54,0.0002051,2]
[337335303,1725609068447,-2938.483127,0.0002051,2]
[337335304,1725609068457,-500.0,0.0002051,2]
[337335305,1725609068467,-187.877231,0.0002051,2]
[337335306,1725609068477,-154.359981,0.0002051,2]
[337335307,1725609068486,-500.0,0.0002051,2]
[337335308,1725609068497,-500.0,0.0002051,2]
[337335309,1725609068508,-187.877231,0.0002051,2]
[337335310,1725609068518,-500.0,0.0002051,2]
[337335311,1725609068527,-500.0,0.0002051,2]
[337335312,1725609068536,-2313.18,0.0002051,2]
[337335313,1725609068546,-500.0,0.0002051,2]
[337335314,1725609068555,-453.570122,0.0002051,2]
[337335315,1725609068575,-3122.398957,0.0002051,2]
[337335316,1725609068585,-523.1,0.0002051,2]
[337335317,1725609068594,-453.570122,0.0002051,2]
[337335318,1725609068604,-3122.398957,0.0002051,2]
[337335319,1725609068614,-500.0,0.0002051,2]
[337335320,1725609068623,-500.0,0.0002051,2]
[337335321,1725609068632,-500.0,0.0002051,2]
[337335322,1725609068644,-500.0,0.0002051,2]
[337335323,1725609068653,-500.0,0.0002051,2]
[337335324,1725609068663,-500.0,0.0002051,2]
[337335325,1725609068672,-500.0,0.0002051,2]
[337335326,1725609068682,-500.0,0.0002051,2]
[337335327,1725609068691,-500.0,0.0002051,2]
[337335328,1725609068700,-500.0,0.0002051,2]
[337335329,1725609068709,-500.0,0.0002051,2]
[337335330,1725609068719,-500.0,0.0002051,2]
[337335331,1725609068728,-699.65,0.0002051,2]
[337335332,1725609068738,-693.249848,0.0002051,2]
[337335333,1725609068747,-693.249848,0.0002051,2]
[337335334,1725609068756,-182.571913,0.0002051,2]
[337335335,1725609068766,-2752.92,0.0002051,2]
[337335336,1725609068776,-500.0,0.0002051,2]
[337335337,1725609068792,-182.571913,0.0002051,2]
[337335338,1725609068808,-1955.500043,0.0002051,2]
[337335339,1725609068821,-500.0,0.0002051,2]
[337335340,1725609068834,-500.0,0.0002051,2]
[337335341,1725609068850,-500.0,0.0002051,2]
[337335342,1725609068866,-552.07846321,0.0002051,2]
[337335343,1725609068881,-1955.500043,0.0002051,2]
[337335344,1725609068897,-151.0,0.0002051,2]
[337335345,1725609068910,-500.0,0.0002051,2]
[337335346,1725609068924,-500.0,0.0002051,2]
[337335347,1725609068940,-2657.46,0.0002051,2]
[337335348,1725609068954,-1558.22,0.0002051,2]
[337335349,1725609068966,-500.0,0.0002051,2]
[337335350,1725609068980,-151.0,0.0002051,2]
[337335351,1725609068995,-500.0,0.0002051,2]
[337335352,1725609069010,-500.0,0.0002051,2]
[337335353,1725609069026,-588.92860803,0.0002051,2]
[337335354,1725609069041,-500.0,0.0002051,2]
[337335355,1725609069052,-1067.85,0.0002051,2]
[337335356,1725609069066,-500.0,0.0002051,2]
[337335357,1725609069082,-1729.39,0.0002051,2]
[337335358,1725609069097,-3152.56,0.0002051,2]
[337335359,1725609069111,-500.0,0.0002051,2]
[337335360,1725609069125,-151.0,0.0002051,2]
[337335361,1725609069138,-1502.9,0.0002051,2]
[337335362,1725609069150,-272.673691,0.0002051,2]
[337335363,1725609069163,-500.0,0.0002051,2]
[337335364,1725609069176,-1550.51,0.0002051,2]
[337335365,1725609069189,-1835.48,0.0002051,2]
[337335366,1725609069202,-500.0,0.0002051,2]
[337335367,1725609069216,-511.96320944,0.0002051,2]
[337335368,1725609069230,-500.0,0.0002051,2]
[337335369,1725609069242,-500.0,0.0002051,2]
[337335370,1725609069256,-500.0,0.0002051,2]
[337335371,1725609069269,-1812.1,0.0002051,2]
[337335372,1725609069282,-500.0,0.0002051,2]
[337335373,1725609069295,-500.0,0.0002051,2]
[337335374,1725609069308,-8738.76,0.0002051,2]
[337335375,1725609069321,-151.0,0.0002051,2]
[337335376,1725609069336,-500.0,0.0002051,2]
[337335377,1725609069348,-500.0,0.0002051,2]
[337335378,1725609069361,-151.0,0.0002051,2]
[337335379,1725609069375,-500.0,0.0002051,2]
[337335380,1725609069387,-2345.16,0.0002051,2]
[337335381,1725609069401,-392.44481418,0.0002051,2]
[337335382,1725609069414,-500.0,0.0002051,2]
[337335383,1725609069426,-500.0,0.0002051,2]
[337335384,1725609069439,-500.0,0.0002051,2]
[337335385,1725609069452,-2122.89,0.0002051,2]
[337335386,1725609069465,-534.65,0.0002051,2]
[337335387,1725609069478,-391.01893531,0.0002051,2]
[337335388,1725609069490,-3548.16,0.0002051,2]
[337335389,1725609069502,-33143.18,0.0002051,2]
[337335390,1725609069514,-500.0,0.0002051,2]
[337335391,1725609069526,-500.0,0.0002051,2]
[337335392,1725609069538,-771.2,0.0002051,2]
[337335393,1725609069550,-490.13116761,0.0002051,2]
[337335394,1725609069563,-500.0,0.0002051,2]
[337335395,1725609069575,-500.0,0.0002051,2]
[337335396,1725609069586,-500.0,0.0002051,2]
[337335397,1725609069599,-3865.4,0.0002051,2]
[337335398,1725609069612,-500.0,0.0002051,2]
[337335399,1725609069625,-500.0,0.0002051,2]
[337335400,1725609069637,-500.0,0.0002051,2]
[337335401,1725609069650,-543.4756078,0.0002051,2]
[337335402,1725609069662,-1107.99,0.0002051,2]
[337335403,1725609069675,-500.0,0.0002051,2]
[337335404,1725609069686,-504.02,0.0002051,2]
[337335405,1725609069699,-266.146237,0.0002051,2]
[337335406,1725609069711,-1152.24,0.0002051,2]
[337335407,1725609069730,-889.69,0.0002051,2]
[337335408,1725609069754,-576.22,0.0002051,2]
[337335409,1725609069770,-266.146237,0.0002051,2]
[337335410,1725609069786,-524.18,0.0002051,2]
[337335411,1725609069802,-500.0,0.0002051,2]
[337335412,1725609069817,-368.13099362,0.0002051,2]
[337335413,1725609069833,-500.0,0.0002051,2]
[337335414,1725609069847,-500.0,0.0002051,2]
[337335415,1725609069861,-151.0,0.0002051,2]
[337335416,1725609069875,-151.0,0.0002051,2]
[337335417,1725609069888,-922.65,0.0002051,2]
[337335418,1725609069901,-1356.69,0.0002051,2]
[337335419,1725609069914,-151.0,0.0002051,2]
[337335420,1725609069927,-185.908607,0.0002051,2]
[337335421,1725609069940,-553.91,0.0002051,2]
[337335422,1725609069953,-639.77,0.0002051,2]
[337335423,1725609069966,-781.345564,0.0002051,2]
[337335424,1725609069979,-3426.878738,0.0002051,2]
[337335425,1725609069991,-151.0,0.0002051,2]
[337335426,1725609070003,-781.345564,0.0002051,2]
[337335427,1725609070016,-500.0,0.0002051,2]
[337335428,1725609070028,-3426.878738,0.0002051,2]
[337335429,1725609070040,-151.0,0.0002051,2]
[337335430,1725609070053,-500.0,0.0002051,2]
[337335431,1725609070066,-500.0,0.0002051,2]
[337335432,1725609070080,-3187.48,0.0002051,2]
[337335433,1725609070092,-2599.3,0.0002051,2]
[337335434,1725609070104,-503.23558285,0.0002051,2]
[337335435,1725609070116,-220.249615,0.0002051,2]
[337335436,1725609070128,-151.0,0.0002051,2]
[337335437,1725609070140,-220.249615,0.0002051,2]
[337335438,1725609070153,-500.0,0.0002051,2]
[337335439,1725609070164,-151.0,0.0002051,2]
[337335440,1725609070177,-500.0,0.0002051,2]
[337335441,1725609070189,-649.32885331,0.0002051,2]
[337335442,1725609070201,-500.0,0.0002051,2]
[337335443,1725609070213,-500.0,0.0002051,2]
[337335444,1725609070224,-500.0,0.0002051,2]
[337335445,1725609070236,-1038.0,0.0002051,2]
[337335446,1725609070248,-549.58,0.0002051,2]
[337335447,1725609070260,-500.0,0.0002051,2]
[337335448,1725609070272,-1795.61,0.0002051,2]
[337335449,1725609070284,-500.0,0.0002051,2]
[337335450,1725609070296,-500.0,0.0002051,2]
[337335451,1725609070313,-500.0,0.0002051,2]
[337335452,1725609070329,-500.0,0.0002051,2]
[337335453,1725609070345,-779.486864,0.0002051,2]
[337335454,1725609070359,-500.0,0.0002051,2]
[337335455,1725609070373,-500.0,0.0002051,2]
[337335456,1725609070387,-2356.74,0.0002051,2]
[337335457,1725609070400,-500.0,0.0002051,2]
[337335458,1725609070415,-500.0,0.0002051,2]
[337335459,1725609070428,-779.486864,0.0002051,2]
[337335460,1725609070441,-151.0,0.0002051,2]
[337335461,1725609070451,-500.0,0.0002051,2]
[337335462,1725609070461,-500.0,0.0002051,2]
[337335463,1725609070472,-1100.742901,0.0002051,2]
[337335464,1725609070481,-151.0,0.0002051,2]
[337335465,1725609070490,-506.4,0.0002051,2]
[337335466,1725609070500,-500.0,0.0002051,2]
[337335467,1725609070510,-2276.85,0.0002051,2]
[337335468,1725609070519,-500.0,0.0002051,2]
[337335469,1725609070529,-500.0,0.0002051,2]
[337335470,1725609070539,-1100.742901,0.0002051,2]
[337335471,1725609070549,-500.0,0.0002051,2]
[337335472,1725609070559,-500.0,0.0002051,2]
[337335473,1725609070569,-1803.483243,0.0002051,2]
[337335474,1725609070579,-256.518314,0.0002051,2]
[337335475,1725609070589,-1803.483243,0.0002051,2]
[337335476,1725609070598,-500.0,0.0002051,2]
[337335477,1725609070608,-256.518314,0.0002051,2]
[337335478,1725609070618,-500.0,0.0002051,2]
[337335479,1725609070628,-166.876144,0.0002051,2]
[337335480,1725609070639,-640.26,0.0002051,2]
[337335481,1725609071011,-500.0,0.0002051,2]
[337335482,1725609071039,-500.0,0.0002051,2]
[337335483,1725609071049,-166.876144,0.0002051,2]
[337335484,1725609071058,-151.0,0.0002051,2]
[337335485,1725609071070,-151.0,0.0002052,2]
[337335486,1725609071079,-151.0,0.0002052,2]
[337335487,1725609071088,-151.0,0.0002052,2]
[337335488,1725609071097,-210.830573,0.0002052,2]
[337335489,1725609071107,-210.830573,0.0002052,2]
[337335490,1725609071117,-2315.311695,0.0002052,2]
[337335491,1725609071127,-2315.311695,0.0002052,2]
[337335492,1725609071137,-266.330469,0.0002052,2]
[337335493,1725609071146,-266.330469,0.0002052,2]
[337335494,1725609071156,-283.24136704,0.00020521,2]
[337335495,1725609071166,-1000.0,0.00020521,2]
[337335496,1725609071175,-555.55433214,0.00020521,2]
[337335497,1725609071186,-1001.87610265,0.00020521,2]
[337335498,1725609071195,-1000.0,0.00020521,2]
[337335499,1725609071205,-151.0,0.00020529,2]
[337335500,1725609071215,-151.0,0.00020529,2]
[337335501,1725609071224,-224.270584,0.00020529,2]
[337335502,1725609071233,-151.0,0.00020529,2]
[337335503,1725609071242,-224.270584,0.00020529,2]
[337335504,1725609071252,-151.0,0.00020529,2]
[337335505,1725609071261,-151.0,0.00020529,2]
[337335506,1725609071270,-213.20068,0.00020529,2]
[337335507,1725609071279,-213.20068,0.00020529,2]
[337335508,1725609071289,-500.0,0.0002053,2]
[337335509,1725609071299,-475.03888213,0.0002053,2]
[337335510,1725609071308,-500.0,0.0002053,2]
[337335511,1725609071320,-500.0,0.0002053,2]
[337335512,1725609071332,-500.0,0.0002053,2]
[337335513,1725609071341,-500.0,0.0002053,2]
[337335514,1725609071351,-500.0,0.0002053,2]
[337335515,1725609071360,-500.0,0.0002053,2]
[337335516,1725609071371,-500.0,0.0002053,2]
[337335517,1725609071380,-500.0,0.0002053,2]
[337335518,1725609071390,-500.0,0.0002053,2]
[337335519,1725609071399,-500.0,0.0002053,2]
[337335520,1725609071410,-500.0,0.0002053,2]
[337335521,1725609071419,-151.0,0.0002053,2]
[337335522,1725609071429,-500.0,0.0002053,2]
[337335523,1725609071438,-500.0,0.0002053,2]
[337335524,1725609071448,-500.0,0.0002053,2]
[337335525,1725609071457,-500.0,0.0002053,2]
[337335526,1725609071466,-500.0,0.0002053,2]
[337335527,1725609071477,-500.0,0.0002053,2]
[337335528,1725609071487,-260.203954,0.0002053,2]
[337335529,1725609071496,-500.0,0.0002053,2]
[337335530,1725609071506,-260.203954,0.0002053,2]
[337335531,1725609071528,-500.0,0.0002053,2]
[337335532,1725609071538,-500.0,0.0002053,2]
[337335533,1725609071548,-500.0,0.0002053,2]
[337335534,1725609071558,-1423.03,0.0002053,2]
[337335535,1725609071570,-500.0,0.0002053,2]
[337335536,1725609071580,-992.75,0.0002053,2]
[337335537,1725609071590,-567.64484964,0.0002053,2]
[337335538,1725609071600,-500.0,0.0002053,2]
[337335539,1725609071610,-2590.45,0.0002053,2]
[337335540,1725609071620,-1259.32,0.0002053,2]
[337335541,1725609071630,-500.0,0.0002053,2]
[337335542,1725609071640,-500.0,0.0002053,2]
[337335543,1725609071650,-1468.26,0.0002053,2]
[337335544,1725609071660,-1261.47,0.0002053,2]
[337335545,1725609071670,-1797.43,0.0002053,2]
[337335546,1725609071680,-500.0,0.0002053,2]
[337335547,1725609071690,-500.0,0.0002053,2]
[337335548,1725609071699,-500.0,0.0002053,2]
[337335549,1725609071709,-1588.66,0.0002053,2]
[337335550,1725609071719,-2414.58,0.0002053,2]
[337335551,1725609071728,-1307.68,0.0002053,2]
[337335552,1725609071738,-1517.37,0.0002053,2]
[337335553,1725609071748,-500.0,0.0002053,2]
[337335554,1725609071757,-787.29,0.0002053,2]
[337335555,1725609071766,-151.0,0.00020531,2]
[337335556,1725609071776,-151.0,0.00020531,2]
[337335557,1725609071786,-151.0,0.00020531,2]
[337335558,1725609071795,-151.0,0.00020531,2]
[337335559,1725609071805,-151.0,0.00020531,2]
[337335560,1725609071816,-350.050139,0.00020531,2]
[337335561,1725609071830,-350.050139,0.00020531,2]
[337335562,1725609071839,-526.81,0.00020531,2]
[337335563,1725609071849,-500.0,0.00020531,2]
[337335564,1725609071860,-1365.94,0.00020531,2]
[337335565,1725609071869,-1589.93,0.00020531,2]
[337335566,1725609071879,-900.09,0.00020531,2]
[337335567,1725609071889,-500.0,0.00020531,2]
[337335568,1725609071899,-500.0,0.00020531,2]
[337335569,1725609071910,-1129.05,0.00020531,2]
[337335570,1725609071920,-1666.46,0.00020531,2]
[337335571,1725609071931,-488.9909609,0.00020531,2]
[337335572,1725609071942,-500.0,0.00020531,2]
[337335573,1725609071952,-500.0,0.00020531,2]
[337335574,1725609071962,-501.63,0.00020531,2]
[337335575,1725609071972,-500.0,0.00020531,2]
[337335576,1725609071983,-996.26,0.00020531,2]
[337335577,1725609071993,-500.0,0.00020531,2]
[337335578,1725609072004,-504.62561545,0.00020531,2]
[337335579,1725609072013,-500.0,0.00020531,2]
[337335580,1725609072024,-500.0,0.00020531,2]
[337335581,1725609072034,-1825.86,0.00020531,2]
[337335582,1725609072045,-500.0,0.00020531,2]
[337335583,1725609072056,-500.0,0.00020531,2]
[337335584,1725609072066,-500.0,0.00020531,2]
[337335585,1725609072076,-500.0,0.00020531,2]
[337335586,1725609072086,-151.649018,0.00020531,2]
[337335587,1725609072096,-500.0,0.00020531,2]
[337335588,1725609072106,-500.0,0.00020531,2]
[337335589,1725609072116,-500.0,0.00020531,2]
[337335590,1725609072126,-500.0,0.00020531,2]
[337335591,1725609072140,-500.0,0.00020531,2]
[337335592,1725609072150,-151.0,0.00020531,2]
[337335593,1725609072161,-512.5087028,0.00020531,2]
[337335594,1725609072170,-151.0,0.00020531,2]
[337335595,1725609072180,-500.0,0.00020531,2]
[337335596,1725609072190,-500.0,0.00020531,2]
[337335597,1725609072199,-500.0,0.00020531,2]
[337335598,1725609072209,-151.0,0.00020531,2]
[337335599,1725609072219,-151.0,0.00020531,2]
[337335600,1725609072229,-553.44,0.00020531,2]
[337335601,1725609072238,-1079.54,0.00020531,2]
[337335602,1725609072248,-500.0,0.00020531,2]
[337335603,1725609072258,-500.0,0.00020531,2]
[337335604,1725609072267,-740.7,0.00020531,2]
[337335605,1725609072277,-500.0,0.00020531,2]
[337335606,1725609072286,-500.0,0.00020531,2]
[337335607,1725609072296,-500.0,0.00020531,2]
[337335608,1725609072305,-500.0,0.00020531,2]
[337335609,1725609072315,-500.0,0.00020531,2]
[337335610,1725609072325,-500.0,0.00020531,2]
[337335611,1725609072338,-161.74916692,0.00020531,2]
[337335612,1725609072348,-500.0,0.00020531,2]
[337335613,1725609072358,-500.0,0.00020531,2]
[337335614,1725609072368,-328.57726196,0.00020531,2]
[337335615,1725609072378,-500.0,0.00020531,2]
[337335616,1725609072388,-500.0,0.00020531,2]
[337335617,1725609072397,-960.33,0.00020531,2]
[337335618,1725609072407,-500.0,0.00020531,2]
[337335619,1725609072417,-500.0,0.00020531,2]
[337335620,1725609072427,-500.0,0.00020531,2]
[337335621,1725609072436,-651.51,0.00020531,2]
[337335622,1725609072446,-500.0,0.00020531,2]
[337335623,1725609072455,-1075.73,0.00020531,2]
[337335624,1725609072465,-1192.96,0.00020531,2]
[337335625,1725609072474,-500.0,0.00020531,2]
[337335626,1725609072484,-2007.33,0.00020531,2]